bitfinex/quotes_SOLUSD_20260306
["timestamp","ask_amount","ask_price","bid_price","bid_amount"]
[1772794417666,4.06974795,87.88,87.83,0.50317435]
[1772794418571,39.82749006,87.879,87.832,0.50317435]
[1772794420049,4.06974795,87.87,87.832,0.50317435]
[1772794420664,11.3805779,87.869,87.834,0.50317435]
[1772794421463,39.83202266,87.869,87.834,0.50317435]
[1772794421665,11.3805779,87.869,87.834,0.50317435]
[1772794422951,4.06974795,87.87,87.829,0.50317435]
[1772794426048,4.06974795,87.88,87.831,0.50317435]
[1772794426964,4.06974795,87.87,87.825,0.50317435]
[1772794427162,4.06974795,87.86,87.825,0.50317435]
[1772794428165,39.83655629,87.859,87.825,0.50317435]
[1772794428372,39.83655629,87.859,87.823,51.22]
[1772794429649,39.83655629,87.859,87.823,51.72317435]
[1772794429849,39.83655629,87.859,87.824,0.50317435]
[1772794432272,39.83655629,87.859,87.826,0.50317435]
[1772794432445,11.38187322,87.859,87.826,0.50317435]
[1772794433074,11.38070742,87.868,87.826,0.50317435]
[1772794433773,0.42648471,87.888,87.828,0.50317435]
[1772794434470,85.33491107,87.889,87.834,0.50317435]
[1772794434677,4.06974795,87.88,87.834,0.50317435]
[1772794434973,2.0,87.88,87.834,0.50317435]
[1772794435854,85.33491107,87.889,87.836,0.50317435]
[1772794438178,11.37798814,87.889,87.84,0.50317435]
[1772794438559,11.37798814,87.889,87.844,0.50317435]
[1772794439155,28.44222194,87.898,87.847,0.50317435]
[1772794439361,28.44222194,87.898,87.855,0.50317435]
[1772794440264,11.3766937,87.899,87.857,0.50317435]
[1772794440464,11.3766937,87.899,87.865,0.50317435]
[1772794440972,39.81842796,87.899,87.865,0.50317435]
[1772794441369,39.81389846,87.909,87.867,0.50317435]
[1772794443461,0.28432314,87.918,87.869,0.50317435]
[1772794444670,4.06974795,87.91,87.869,0.50317435]
[1772794444864,0.28432314,87.918,87.869,0.50317435]
[1772794446280,39.81027559,87.917,87.871,0.50317435]
[1772794448686,28.43591114,87.917,87.873,0.50317435]
[1772794450595,28.43591114,87.917,87.875,0.50317435]
[1772794452789,28.43591114,87.917,87.877,0.50317435]
[1772794453270,0.1,87.92,87.883,0.50317435]
[1772794453471,0.1,87.92,87.885,0.50317435]
[1772794454880,0.1,87.92,87.887,0.50317435]
[1772794455282,0.1,87.92,87.889,0.50317435]
[1772794455467,0.1,87.92,87.895,0.50317435]
[1772794455784,0.1,87.93,87.894,0.50317435]
[1772794455984,11.37151889,87.939,87.904,0.50317435]
[1772794456891,39.79126638,87.959,87.906,0.50317435]
[1772794457576,11.36893325,87.959,87.908,0.50317435]
[1772794457782,11.36893325,87.959,87.91,0.50317435]
[1772794458088,39.79126638,87.959,87.91,0.50317435]
[1772794458991,39.79126638,87.959,87.912,0.50317435]
[1772794459296,4.06555436,87.95,87.897,0.50317435]
[1772794459591,4.06555436,87.94,87.897,0.50317435]
[1772794461177,39.80031612,87.939,87.899,0.50317435]
[1772794462099,39.80031612,87.939,87.894,11.37732979]
[1772794462276,4.06555436,87.93,87.894,11.37732979]
[1772794462784,4.06555436,87.93,87.895,0.50317435]
[1772794462986,39.80031612,87.939,87.895,0.50317435]
[1772794463287,39.80031612,87.939,87.897,0.50317435]
[1772794465579,39.80031612,87.939,87.899,0.50317435]
[1772794467807,39.80031612,87.939,87.901,0.50317435]
[1772794469703,4.06555436,87.92,87.879,0.50317435]
[1772794470788,0.45566225,87.909,87.853,3.69383402]
[1772794471000,0.45566225,87.909,87.854,0.14216157]
[1772794471384,0.45566225,87.909,87.854,0.42648471]
[1772794471886,0.49438513,87.907,87.856,0.14216157]
[1772794472281,0.49438513,87.907,87.856,0.28432314]
[1772794472702,0.49438513,87.907,87.86,0.14216157]
[1772794472911,0.49438513,87.907,87.856,0.28432314]
[1772794472912,0.49438513,87.907,87.865,0.46411553]
[1772794473292,0.48072544,87.905,87.867,0.46411553]
[1772794475083,7.5,87.9,87.867,0.46411553]
[1772794475284,0.48072544,87.905,87.867,0.46411553]
[1772794476090,0.48072544,87.903,87.869,0.46411553]
[1772794478292,11.37630543,87.902,87.871,0.46411553]
[1772794479788,11.37630543,87.902,87.873,0.46411553]
[1772794481007,11.37630543,87.902,87.866,28.45241617]
[1772794481008,0.48072544,87.902,87.875,0.46411553]
[1772794481201,7.5,87.9,87.875,0.46411553]
[1772794481403,0.48072544,87.902,87.875,0.46411553]
[1772794483331,11.85716029,87.901,87.877,0.46411553]
[1772794483811,0.48072544,87.9,87.877,0.46411553]
[1772794484406,0.48072544,87.9,87.855,0.46411553]
[1772794484407,0.48072544,87.899,87.855,0.46411553]
[1772794484610,0.48072544,87.899,87.856,0.46411553]
[1772794485209,11.37682313,87.898,87.857,11.38213232]
[1772794485409,0.48072544,87.897,87.858,0.46411553]
[1772794486290,0.6,87.89,87.858,0.46411553]
[1772794486490,11.37798814,87.889,87.86,0.46411553]
[1772794491311,11.37798814,87.889,87.861,11.38161414]
[1772794491516,11.37798814,87.889,87.862,0.46411553]
[1772794493913,0.48072544,87.888,87.864,0.46411553]
[1772794494325,0.48072544,87.888,87.854,51.18]
[1772794494326,0.48072544,87.879,87.854,51.18]
[1772794495420,0.48072544,87.879,87.809,28.47067491]
[1772794495607,0.48072544,87.869,87.826,0.46411553]
[1772794496009,0.48072544,87.867,87.829,0.46411553]
[1772794496197,0.48072544,87.867,87.835,0.46411553]
[1772794496613,0.48072544,87.849,87.812,0.46411553]
[1772794497210,0.48072544,87.849,87.814,0.46411553]
[1772794497802,0.48072544,87.847,87.814,0.46411553]
[1772794498524,0.48072544,87.839,87.814,0.46411553]
[1772794499619,0.48072544,87.837,87.808,0.46411553]
[1772794499831,0.48072544,87.829,87.807,45.72897286]
[1772794500315,0.48072544,87.829,87.807,45.52856357]
[1772794500631,4.06555436,87.82,87.788,0.50101147]
[1772794500856,4.06555436,87.8,87.765,0.50101147]
[1772794501122,0.28432314,87.82,87.764,0.50101147]
[1772794501123,4.06555436,87.79,87.764,0.50101147]
[1772794501508,4.06555436,87.8,87.766,11.39387882]
[1772794502529,4.06555436,87.8,87.771,0.50101147]
[1772794502707,4.06555436,87.81,87.771,0.50101147]
[1772794504506,4.06555436,87.8,87.773,0.50101147]
[1772794506637,11.38965136,87.799,87.774,11.39289539]
[1772794506926,11.38965136,87.799,87.775,0.50101147]
[1772794510336,11.38965136,87.799,87.77,0.2]
[1772794510337,4.06555436,87.79,87.77,0.2]
[1772794510624,4.07788144,87.79,87.77,0.2]
[1772794511017,11.38965136,87.799,87.77,0.2]
[1772794512836,11.38965136,87.799,87.77,0.70101147]
[1772794513423,11.38965136,87.799,87.771,0.50101147]
[1772794514138,11.38965136,87.799,87.772,0.50101147]
[1772794514533,4.07788144,87.79,87.77,0.2]
[1772794514741,4.07788144,87.78,87.77,0.2]
[1772794516127,11.38978108,87.798,87.771,0.50101147]
[1772794516325,4.07788144,87.79,87.771,0.50101147]
[1772794516649,5.77788144,87.79,87.77,0.2]
[1772794520141,11.39094875,87.789,87.771,0.50101147]
[1772794523642,11.39094875,87.789,87.77,0.2]
[1772794525857,11.39094875,87.789,87.77,0.70101147]
[1772794527253,11.39094875,87.789,87.771,0.50101147]
[1772794528362,1.7,87.79,87.773,0.50101147]
[1772794530056,1.7,87.79,87.774,11.39289539]
[1772794530247,1.7,87.79,87.775,0.50101147]
[1772794535971,13.09091025,87.79,87.775,0.50101147]
[1772794537866,1.7,87.79,87.775,0.50101147]
[1772794538063,0.1,87.98,87.777,0.50559187]
[1772794538064,4.07788144,87.81,87.777,0.50559187]
[1772794538268,11.38871623,87.807,87.777,0.50559187]
[1772794538466,0.02549455,87.806,87.777,0.50559187]
[1772794538671,4.07788144,87.8,87.777,0.50559187]
[1772794539468,0.02608534,87.826,87.779,0.50559187]
[1772794539666,4.07788144,87.81,87.779,0.50559187]
[1772794540374,0.02666934,87.809,87.779,0.50559187]
[1772794541854,11.4150236,87.809,87.78,11.39211665]
[1772794542055,11.4150236,87.809,87.781,0.50559187]
[1772794543276,0.02838141,87.814,87.783,0.50559187]
[1772794543486,4.07788144,87.81,87.783,0.50559187]
[1772794543783,0.02893904,87.821,87.783,0.50559187]
[1772794543986,4.07788144,87.82,87.783,0.50559187]
[1772794545386,4.07788144,87.82,87.782,39.87149985]
[1772794545387,11.38705747,87.819,87.785,0.50559187]
[1772794547772,0.02893904,87.823,87.787,0.50559187]
[1772794549095,0.03163257,87.819,87.787,0.50559187]
[1772794549886,11.41869004,87.819,87.789,0.50559187]
[1772794551189,11.38705747,87.819,87.789,0.50559187]
[1772794554396,11.38705747,87.819,87.791,0.50559187]
[1772794556098,1.7,87.82,87.791,0.50559187]
[1772794556476,1.7,87.82,87.793,0.50559187]
[1772794559307,1.7,87.82,87.795,0.50559187]
[1772794560313,13.08700364,87.82,87.795,0.50559187]
[1772794560898,13.08700364,87.82,87.789,11.390889]
[1772794560899,0.03749632,87.809,87.789,11.390889]
[1772794561511,0.03749632,87.808,87.789,11.390889]
[1772794563009,0.03749632,87.808,87.788,0.50559187]
[1772794563222,0.03749632,87.808,87.788,11.89664073]
[1772794563512,0.03749632,87.808,87.789,0.50101147]
[1772794564899,0.03970957,87.818,87.791,0.50101147]
[1772794565112,7.5,87.81,87.791,0.50101147]
[1772794565418,11.38656531,87.823,87.791,0.50101147]
[1772794566307,0.04013709,87.826,87.792,11.3905595]
[1772794566615,0.04013709,87.826,87.793,0.50101147]
[1772794567315,11.38576096,87.829,87.793,0.50101147]
[1772794568217,11.4267384,87.829,87.793,0.50101147]
[1772794569098,0.0413904,87.828,87.795,0.50101147]
[1772794569302,0.0413904,87.809,87.779,0.50101147]
[1772794569502,0.50197194,87.789,87.749,11.39614126]
[1772794569915,0.50197194,87.789,87.749,39.88649442]
[1772794571220,0.50197194,87.787,87.749,28.49035316]
[1772794571412,0.50197194,87.787,87.75,0.47949315]
[1772794572123,0.50197194,87.779,87.75,0.47949315]
[1772794572506,0.50197194,87.787,87.75,0.47949315]
[1772794573733,0.50197194,87.785,87.752,0.47949315]
[1772794575914,11.39159755,87.784,87.754,0.47949315]
[1772794578418,11.89356949,87.784,87.756,0.47949315]
[1772794579028,0.50197194,87.784,87.756,0.47949315]
[1772794579235,0.50197194,87.783,87.756,0.47949315]
[1772794579536,0.50197194,87.779,87.745,0.47949315]
[1772794581109,0.50197194,87.777,87.747,0.47949315]
[1772794583037,0.50197194,87.777,87.741,0.47949315]
[1772794583231,0.50197194,87.775,87.741,0.47949315]
[1772794584638,0.50197194,87.769,87.741,0.47949315]
[1772794585640,0.50197194,87.769,87.742,0.47949315]
[1772794590440,0.50197194,87.767,87.742,0.47949315]
[1772794590951,0.50197194,87.767,87.743,0.47949315]
[1772794592742,0.48484686,87.765,87.745,0.48850713]
[1772794593358,0.48484686,87.776,87.745,0.48850713]
[1772794593650,0.48484686,87.769,87.745,0.48850713]
[1772794594828,4.07767913,87.77,87.716,3.83599559]
[1772794594829,0.48484686,87.767,87.746,11.88503802]
[1772794595238,0.48484686,87.767,87.747,0.48850713]
[1772794595448,0.48484686,87.78,87.747,0.48850713]
[1772794595627,0.48484686,87.778,87.747,0.48850713]
[1772794596545,11.3923387,87.779,87.747,0.48850713]
[1772794596546,0.48484686,87.769,87.747,0.48850713]
[1772794596935,4.07767913,87.77,87.747,0.48850713]
[1772794596936,0.48484686,87.767,87.747,0.48850713]
[1772794597528,0.48484686,87.767,87.748,11.39627114]
[1772794597852,0.48484686,87.767,87.749,0.48850713]
[1772794599251,0.48484686,87.772,87.751,0.48850713]
[1772794600669,4.07767913,87.77,87.746,0.48850713]
[1772794600843,0.48484686,87.769,87.746,0.48850713]
[1772794601853,4.07767913,87.77,87.746,0.48850713]
[1772794601854,0.48484686,87.767,87.746,0.48850713]
[1772794602366,0.48484686,87.767,87.74,12.08574748]
[1772794602549,0.48484686,87.767,87.741,0.48850713]
[1772794603063,0.48484686,87.767,87.74,0.68850713]
[1772794603237,0.48484686,87.767,87.741,0.48850713]
[1772794604943,0.48484686,87.765,87.742,0.48850713]
[1772794606564,11.39393386,87.766,87.742,0.48850713]
[1772794606956,15.47116184,87.77,87.744,0.48850713]
[1772794607158,0.48484686,87.769,87.744,0.48850713]
[1772794609148,11.39367423,87.768,87.744,0.48850713]
[1772794609366,0.48484686,87.767,87.744,0.48850713]
[1772794611048,0.48484686,87.767,87.746,0.48850713]
[1772794611563,11.39393386,87.766,87.748,0.48850713]
[1772794611958,0.48484686,87.767,87.748,0.48850713]
[1772794612272,0.48484686,87.766,87.748,0.48850713]
[1772794613970,11.39390782,87.767,87.748,0.48850713]
[1772794614170,0.48484686,87.771,87.75,0.48850713]
[1772794614367,11.3934146,87.77,87.75,0.48850713]
[1772794614562,0.48484686,87.774,87.75,0.48850713]
[1772794615069,11.39302518,87.773,87.75,0.48850713]
[1772794616073,0.48484686,87.774,87.752,0.48850713]
[1772794616553,0.48484686,87.789,87.752,0.48850713]
[1772794617065,0.48484686,87.788,87.752,0.48850713]
[1772794619980,0.48484686,87.786,87.754,0.48850713]
[1772794620558,0.48484686,87.769,87.74,0.2]
[1772794620884,0.48484686,87.765,87.741,0.48850713]
[1772794621055,0.48484686,87.786,87.741,0.48850713]
[1772794621693,4.07767913,87.78,87.741,0.48850713]
[1772794621857,0.47737912,87.769,87.743,0.48510708]
[1772794622060,0.47737912,87.769,87.741,0.48510708]
[1772794623982,0.47737912,87.767,87.742,11.88215752]
[1772794624284,0.47737912,87.767,87.743,0.48510708]
[1772794625166,4.55505825,87.76,87.743,0.48510708]
[1772794625374,4.07767913,87.76,87.743,0.48510708]
[1772794625580,0.47737912,87.759,87.743,0.48510708]
[1772794626085,11.39497253,87.758,87.743,0.48510708]
[1772794626487,0.47737912,87.759,87.743,0.48510708]
[1772794626693,4.07767913,87.76,87.744,0.48510708]
[1772794627387,11.8718275,87.763,87.744,0.48510708]
[1772794628174,4.07767913,87.76,87.744,0.48510708]
[1772794629896,0.47737912,87.765,87.746,0.48510708]
[1772794630074,11.39419351,87.764,87.746,0.48510708]
[1772794630277,11.87157263,87.764,87.746,0.48510708]
[1772794631076,7.5,87.76,87.746,0.48510708]
[1772794631276,11.87157263,87.764,87.746,0.48510708]
[1772794631995,11.87157263,87.764,87.744,11.39673055]
[1772794631996,0.47737912,87.763,87.744,11.39673055]
[1772794632201,0.47737912,87.763,87.745,0.48510708]
[1772794632503,11.39419351,87.764,87.745,0.48510708]
[1772794632676,11.87100383,87.769,87.745,0.48510708]
[1772794633002,0.47737912,87.768,87.745,0.48510708]
[1772794633498,0.47737912,87.766,87.745,0.48510708]
[1772794633903,0.47737912,87.766,87.746,0.48510708]
[1772794634796,0.47737912,87.766,87.747,0.48510708]
[1772794635692,62.2,87.787,87.74,0.2]
[1772794635693,0.47737912,87.769,87.749,0.48510708]
[1772794635999,7.5,87.76,87.749,0.48510708]
[1772794636306,4.07987478,87.78,87.749,0.48510708]
[1772794636307,4.5572539,87.78,87.749,0.48510708]
[1772794636480,0.47737912,87.785,87.749,0.48510708]
[1772794637276,11.39094875,87.789,87.749,0.48510708]
[1772794637495,0.47737912,87.794,87.751,0.48510708]
[1772794638087,0.47737912,87.809,87.753,0.48510708]
[1772794638291,0.47737912,87.829,87.759,0.48510708]
[1772794638484,0.47737912,87.829,87.771,0.48510708]
[1772794638687,0.47737912,87.829,87.778,0.14216157]
[1772794638997,0.47737912,87.829,87.785,0.48510708]
[1772794639200,0.47737912,87.826,87.785,0.48510708]
[1772794639395,0.47737912,87.819,87.785,0.48510708]
[1772794639795,0.47737912,87.817,87.787,0.48510708]
[1772794641707,0.47737912,87.817,87.786,11.39133802]
[1772794641910,0.47737912,87.815,87.786,0.48510708]
[1772794642685,11.38744647,87.816,87.761,39.88104054]
[1772794642686,0.47737912,87.809,87.761,39.88104054]
[1772794643090,0.47737912,87.809,87.762,0.14216157]
[1772794643895,0.47737912,87.807,87.762,0.14216157]
[1772794644695,0.47737912,87.807,87.765,0.48510708]
[1772794647015,0.47737912,87.807,87.767,0.48510708]
[1772794647217,0.47737912,87.806,87.767,0.48510708]
[1772794649011,7.5,87.8,87.769,0.48510708]
[1772794649511,0.47737912,87.801,87.769,0.48510708]
[1772794650620,178.54635815,88.563,87.773,0.48510708]
[1772794650621,0.47737912,87.811,87.773,0.48510708]
[1772794650796,0.47737912,87.811,87.775,0.48510708]
[1772794651524,11.38602024,87.827,87.775,0.48510708]
[1772794651525,0.47737912,87.816,87.775,0.48510708]
[1772794651694,0.5040835,87.826,87.776,0.14216157]
[1772794652019,0.5040835,87.826,87.785,0.49410845]
[1772794652706,0.5040835,87.826,87.784,0.14216157]
[1772794652707,0.51306753,87.824,87.787,0.4890274]
[1772794654034,11.38627953,87.825,87.787,0.4890274]
[1772794654035,0.51306753,87.819,87.787,0.4890274]
[1772794655102,11.38718713,87.818,87.782,0.4890274]
[1772794655307,0.51306753,87.817,87.782,0.4890274]
[1772794656502,0.51306753,87.815,87.784,0.4890274]
[1772794659398,11.38770583,87.814,87.785,11.39146779]
[1772794659604,0.51306753,87.813,87.786,0.4890274]
[1772794661414,11.38796519,87.812,87.781,0.4890274]
[1772794661724,0.51306753,87.811,87.781,0.4890274]
[1772794662219,0.51306753,87.811,87.781,11.88100292]
[1772794662630,0.51306753,87.811,87.781,0.4890274]
[1772794663228,0.51306753,87.811,87.782,11.3918571]
[1772794664728,0.51306753,87.809,87.782,11.3918571]
[1772794665435,0.51306753,87.809,87.782,11.8808845]
[1772794665727,0.51306753,87.809,87.783,0.4890274]
[1772794669635,0.51306753,87.789,87.758,0.4890274]
[1772794670112,0.51306753,87.787,87.76,0.4890274]
[1772794671244,0.51306753,87.785,87.762,0.4890274]
[1772794673339,11.39159755,87.784,87.748,0.4890274]
[1772794673538,11.39159755,87.784,87.743,0.4890274]
[1772794673539,0.51306753,87.779,87.743,0.4890274]
[1772794673725,0.51306753,87.779,87.745,0.4890274]
[1772794678950,0.51306753,87.769,87.741,51.24]
[1772794680337,0.51306753,87.769,87.741,51.7290274]
[1772794681155,0.51306753,87.767,87.741,51.7290274]
[1772794685433,0.53002807,87.765,87.741,51.7290274]
[1772794685632,0.53002807,87.765,87.741,51.24]
[1772794685843,0.53002807,87.759,87.741,51.24]
[1772794686531,0.53002807,87.759,87.741,0.52175485]
[1772794687545,0.53002807,87.758,87.741,0.52175485]
[1772794687851,11.39495941,87.759,87.741,0.52175485]
[1772794688034,0.53002807,87.763,87.743,0.52175485]
[1772794688940,0.53002807,87.768,87.743,0.52175485]
[1772794691438,11.39380404,87.767,87.743,0.52175485]
[1772794691634,0.53002807,87.766,87.743,0.52175485]
[1772794694051,0.53002807,87.764,87.743,0.52175485]
[1772794699158,0.5364686,87.762,87.743,0.52175485]
[1772794700565,0.5364686,87.762,87.741,11.95056308]
[1772794700766,0.5364686,87.762,87.742,0.55338275]
[1772794703869,11.39458301,87.761,87.742,0.55338275]
[1772794704752,11.93105161,87.761,87.742,0.55338275]
[1772794707366,0.5364686,87.76,87.742,0.55338275]
[1772794709881,11.93131129,87.759,87.742,0.55338275]
[1772794710082,0.5364686,87.766,87.744,0.55338275]
[1772794710279,0.5364686,87.771,87.744,0.55338275]
[1772794711889,0.54426495,87.769,87.746,0.56229903]
[1772794713091,0.54426495,87.769,87.741,0.54878498]
[1772794714275,0.55693938,87.767,87.741,0.54878498]
[1772794716665,0.55693938,87.767,87.716,0.14216157]
[1772794716666,0.55693938,87.749,87.713,0.54878498]
[1772794716889,0.55693938,87.749,87.69,0.2]
[1772794716890,0.55693938,87.739,87.711,11.40100772]
[1772794717284,0.55693938,87.739,87.712,0.54878498]
[1772794717869,0.55693938,87.729,87.712,0.54878498]
[1772794718790,0.55693938,87.728,87.712,0.54878498]
[1772794719578,11.95517571,87.733,87.716,0.54878498]
[1772794719766,11.95517571,87.733,87.694,28.50794506]
[1772794719970,11.95517571,87.733,87.718,0.54878498]
[1772794721895,0.55693938,87.732,87.718,0.54878498]
[1772794722998,0.55693938,87.738,87.718,0.54878498]
[1772794723900,0.55693938,87.727,87.717,1.6123254]
[1772794726018,0.55693938,87.727,87.69,0.2]
[1772794726019,0.55693938,87.725,87.7,1e-08]
[1772794726301,0.22338296,87.709,87.68,0.2]
[1772794726478,4.07979299,87.69,87.68,0.2]
[1772794726682,0.22502241,87.689,87.661,0.54878498]
[1772794726888,4.07979299,87.68,87.661,0.54878498]
[1772794727684,0.22663612,87.679,87.656,0.54878498]
[1772794727887,0.22663612,87.677,87.656,0.54878498]
[1772794728281,0.22663612,87.677,87.656,11.95692488]
[1772794728810,0.22663612,87.677,87.659,0.54878498]
[1772794730707,4.07979299,87.68,87.653,0.54878498]
[1772794730708,0.23139179,87.675,87.653,0.54878498]
[1772794730888,4.07979299,87.67,87.653,0.54878498]
[1772794731207,4.07979299,87.67,87.647,11.40930174]
[1772794731400,11.40562981,87.676,87.661,0.54878498]
[1772794732397,32.58934077,87.69,87.662,0.54878498]
[1772794733101,11.40333777,87.694,87.664,0.54878498]
[1772794733489,4.07979299,87.69,87.664,0.54878498]
[1772794735694,0.23896609,87.706,87.667,0.54878498]
[1772794736292,11.40211851,87.703,87.667,0.54878498]
[1772794737607,11.40211851,87.703,87.669,0.54878498]
[1772794740706,0.24609874,87.707,87.671,0.54878498]
[1772794744001,11.4017285,87.706,87.672,11.40615019]
[1772794744321,11.4017285,87.706,87.673,0.54401213]
[1772794744621,11.65456538,87.706,87.673,0.54401213]
[1772794744917,0.25283688,87.705,87.673,0.54401213]
[1772794747316,11.4019885,87.704,87.674,11.40589]
[1772794747523,11.4019885,87.704,87.675,0.54401213]
[1772794747923,0.25668469,87.708,87.675,0.54401213]
[1772794750811,0.26040103,87.706,87.677,0.54401213]
[1772794753303,11.4018585,87.705,87.678,11.40536964]
[1772794753515,0.26399631,87.704,87.679,0.54401213]
[1772794755728,0.26399631,87.704,87.65,4.17815716]
[1772794755729,10.21417973,87.71,87.681,0.54401213]
[1772794756442,10.21417973,87.71,87.68,39.9178832]
[1772794756443,11.39914331,87.726,87.684,0.14216157]
[1772794756619,11.39914331,87.726,87.685,0.54401213]
[1772794758227,0.26860629,87.725,87.687,0.54401213]
[1772794758928,0.26972415,87.709,87.661,11.54974304]
[1772794759129,0.26972415,87.709,87.661,40.06869673]
[1772794760311,0.58476298,87.699,87.661,40.06869673]
[1772794761128,0.58476298,87.699,87.664,0.54401213]
[1772794762028,0.58476298,87.697,87.666,0.54401213]
[1772794764946,0.58476298,87.697,87.668,0.54401213]
[1772794766833,0.58476298,87.697,87.67,0.54401213]
[1772794767727,11.98700214,87.703,87.67,0.54401213]
[1772794768626,0.58476298,87.703,87.67,0.54401213]
[1772794768928,0.58476298,87.706,87.67,0.54401213]
[1772794770339,0.58476298,87.706,87.656,0.14216157]
[1772794770340,0.58476298,87.706,87.672,0.54401213]
[1772794770745,4.0829445,87.72,87.672,0.54401213]
[1772794770746,0.58476298,87.704,87.672,0.54401213]
[1772794772938,0.55576712,87.702,87.674,0.60565736]
[1772794776951,0.55576712,87.699,87.66,0.2]
[1772794777152,0.55576712,87.699,87.661,11.40758147]
[1772794778638,0.55576712,87.711,87.662,0.14216157]
[1772794779045,0.55576712,87.711,87.665,0.60565736]
[1772794779343,0.55576712,87.709,87.665,0.60565736]
[1772794780946,0.55576712,87.707,87.667,0.60565736]
[1772794781533,0.55576712,87.716,87.669,0.60565736]
[1772794781732,0.55576712,87.716,87.675,0.60565736]
[1772794783448,0.55576712,87.714,87.677,0.60565736]
[1772794785867,0.55576712,87.712,87.679,0.60565736]
[1772794790963,4.0829445,87.71,87.68,0.60565736]
[1772794791265,0.55576712,87.709,87.668,0.60565736]
[1772794792867,0.55576712,87.707,87.669,0.60565736]
[1772794795488,0.55576712,87.705,87.671,0.60565736]
[1772794798477,0.55576712,87.703,87.673,0.60565736]
[1772794801081,0.55576712,87.703,87.675,0.60565736]
[1772794801297,0.55576712,87.707,87.666,11.40682192]
[1772794801497,0.55576712,87.699,87.667,0.60565736]
[1772794801876,0.55576712,87.699,87.66,0.2]
[1772794802077,0.58364829,87.689,87.66,0.2]
[1772794802398,0.58364829,87.669,87.648,0.44974488]
[1772794802599,0.58364829,87.669,87.648,0.19406756]
[1772794802895,0.58364829,87.659,87.633,0.61998308]
[1772794803283,0.58364829,87.679,87.635,0.61998308]
[1772794803493,40.50198676,87.679,87.635,0.61998308]
[1772794803704,0.58364829,87.678,87.635,0.61998308]
[1772794805199,0.58364829,87.688,87.64,0.61998308]
[1772794805404,0.58364829,87.688,87.644,0.61998308]
[1772794807409,0.58364829,87.686,87.646,0.61998308]
[1772794809713,0.58364829,87.686,87.636,0.14216157]
[1772794809714,0.58364829,87.684,87.648,0.61998308]
[1772794809895,0.58364829,87.679,87.648,0.61998308]
[1772794812721,0.58364829,87.699,87.652,0.61998308]
[1772794813012,8.15534378,87.726,87.662,0.61998308]
[1772794813013,0.58364829,87.716,87.662,0.61998308]
[1772794813189,0.58364829,87.716,87.673,0.14216157]
[1772794813520,0.58364829,87.716,87.674,0.61998308]
[1772794814094,0.58364829,87.722,87.684,0.61998308]
[1772794814813,11.39977884,87.721,87.686,0.61998308]
[1772794816817,7.5,87.72,87.688,0.61998308]
[1772794819420,0.58364829,87.709,87.681,0.61998308]
[1772794819719,0.58364829,87.709,87.628,4.82477569]
[1772794819720,0.58364829,87.699,87.668,12.0266537]
[1772794820033,0.58364829,87.679,87.634,0.61998308]
[1772794820336,4.08316358,87.68,87.634,0.61998308]
[1772794820513,4.08316358,87.69,87.634,0.61998308]
[1772794820713,4.08316358,87.69,87.644,0.61998308]
[1772794820714,0.58364829,87.689,87.644,0.61998308]
[1772794821442,0.58364829,87.687,87.646,0.61998308]
[1772794821650,0.58364829,87.699,87.646,0.61998308]
[1772794821820,0.58364829,87.71,87.657,0.14216157]
[1772794822020,0.58364829,87.71,87.648,3.97815716]
[1772794822021,0.58364829,87.71,87.673,0.14216157]
[1772794822224,0.58364829,87.71,87.674,0.61998308]
[1772794823640,0.58364829,87.71,87.676,0.61998308]
[1772794824145,28.49709735,87.729,87.676,0.61998308]
[1772794824146,11.98415528,87.716,87.676,0.61998308]
[1772794824327,0.58364829,87.715,87.676,0.61998308]
[1772794826729,11.9849868,87.709,87.678,0.61998308]
[1772794828241,7.5,87.71,87.68,0.61998308]
[1772794828433,7.5,87.71,87.684,0.61998308]
[1772794828832,0.58364829,87.721,87.684,0.61998308]
[1772794829536,11.98349184,87.721,87.686,0.61998308]
[1772794832053,11.39984355,87.721,87.686,0.61998308]
[1772794832255,0.64723215,87.72,87.688,0.62430806]
[1772794834445,0.64723215,87.718,87.689,11.40393892]
[1772794834645,0.64723215,87.718,87.69,0.62430806]
[1772794836564,0.64723215,87.716,87.692,0.62430806]
[1772794838245,12.046991,87.722,87.693,0.62430806]
[1772794838558,0.64723215,87.721,87.693,0.62430806]
[1772794840166,0.64723215,87.719,87.695,0.62430806]
[1772794841964,0.64723215,87.718,87.695,0.62430806]
[1772794842551,0.64723215,87.716,87.688,0.62430806]
[1772794842851,0.64723215,87.699,87.658,0.62430806]
[1772794843168,0.64723215,87.689,87.656,11.40823218]
[1772794843351,0.64723215,87.689,87.652,0.62430806]
[1772794843352,0.64723215,87.679,87.652,11.40875243]
[1772794843749,0.64723215,87.693,87.653,0.62430806]
[1772794844476,0.64723215,87.709,87.653,0.62430806]
[1772794844768,0.64723215,87.707,87.655,0.62430806]
[1772794845476,0.64723215,87.699,87.655,0.62430806]
[1772794848071,4.08316358,87.7,87.623,0.62430806]
[1772794848072,4.08316358,87.67,87.623,0.62430806]
[1772794848282,0.64723215,87.659,87.618,0.62430806]
[1772794848452,0.64723215,87.659,87.625,11.41223525]